fUST/lending_fUST_20250429
["ID","MTS","AMOUNT","RATE_DAILY","PERIOD"]
[359328023,1745926247009,-400.16175138,0.00035616,3]
[359328024,1745926247020,-119.59724508,0.00035616,3]
[359328041,1745926322441,170.70143656,7.5e-07,2]
[359328042,1745926322615,129.29856344,7.5e-07,2]
[359328043,1745926322639,41.40287312,7.5e-07,2]
[359328044,1745926322764,170.70143656,7.5e-07,2]
[359328045,1745926322893,170.70143656,7.5e-07,2]
[359328046,1745926323224,170.70143656,7.5e-07,2]
[359328057,1745926623851,170.70143655,7.5e-07,2]
[359328070,1745927298393,6915.32343143,0.00018,2]
[359328071,1745927299179,-441.92704006,0.00018,2]
[359328072,1745927304065,-300.0,0.00018,2]
[359328073,1745927309335,-178.13892656,0.00018,2]
[359328074,1745927312431,-2787.0,0.00018,2]
[359328075,1745927312584,-137.29314835,0.00018,2]
[359328108,1745927431778,-191.37972229,0.00027197,2]
[359328109,1745927431787,-1000.0,0.00027297,2]
[359328110,1745927431797,-225.9874038,0.00027297,2]
[359328111,1745927431806,-163.365795,0.00027397,2]
[359328112,1745927431816,-300.0,0.00029528,2]
[359328113,1745927431826,-300.0,0.00029529,2]
[359328114,1745927431836,-300.0,0.00029529,2]
[359328115,1745927431846,-300.0,0.00029529,2]
[359328116,1745927431856,-1200.0,0.00029529,2]
[359328117,1745927431867,-5537.4689309,0.0002953,2]
[359328118,1745927431877,-155.0,0.00030137,2]
[359328119,1745927431887,-206.38090959,0.000309,9]
[359328120,1745927431896,-690.2138713,0.00031699,2]
[359328121,1745927431907,-206.38090947,0.00031733,10]
[359328122,1745927431917,-1471.7924732,0.00031801,2]
[359328123,1745927431927,-202.3247221,0.00031807,120]
[359328124,1745927431938,-10651.0,0.00031807,2]
[359328125,1745927431948,-160.0,0.00031808,2]
[359328126,1745927431958,-12584.55399671,0.00031808,2]
[359328127,1745927431968,-840.73483787,0.00031808,2]
[359328128,1745927431978,-160.0,0.00031808,2]
[359328129,1745927431990,-160.0,0.00031808,2]
[359328130,1745927432004,-160.0,0.00031808,2]
[359328131,1745927432015,-300.0,0.00031841,3]
[359328132,1745927432026,-300.0,0.00031841,3]
[359328133,1745927432037,-420.0,0.00031841,2]
[359328134,1745927432046,-188.2854794,0.0003225,2]
[359328135,1745927432056,-206.38090947,0.00032567,10]
[359328136,1745927432067,-155.0,0.00032876,2]
[359328137,1745927432077,-206.38090947,0.000334,11]
[359328138,1745927432088,-206.38090947,0.00034233,11]
[359328139,1745927432099,-180.0,0.00034335,2]
[359328140,1745927432109,-192.6285804,0.00034616,4]
[359328141,1745927432118,-500.0,0.00034873,5]
[359328142,1745927432127,-500.0,0.00034873,5]
[359328143,1745927432137,-500.0,0.00034873,5]
[359328144,1745927432146,-500.0,0.00034873,5]
[359328145,1745927432154,-495.30513333,0.00034873,5]
[359328146,1745927432164,-500.0,0.00034873,5]
[359328147,1745927432173,-500.0,0.00034873,5]
[359328148,1745927432183,-213.28426319,0.00034889,7]
[359328149,1745927432192,-386.33237369,0.00034889,7]
[359328150,1745927432202,-500.0,0.00034889,2]
[359328151,1745927432212,-500.0,0.00034889,7]
[359328152,1745927432222,-500.0,0.00034889,2]
[359328153,1745927432232,-306.69711069,0.00034889,7]
[359328154,1745927432241,-500.0,0.00034889,2]
[359328155,1745927432251,-500.0,0.00034889,2]
[359328156,1745927432260,-500.0,0.00034889,2]
[359328157,1745927432270,-500.0,0.00034889,2]
[359328158,1745927432279,-500.0,0.00034889,2]
[359328159,1745927432288,-500.0,0.00034889,2]
[359328160,1745927432298,-500.0,0.00034889,2]
[359328161,1745927432307,-500.0,0.00034889,2]
[359328162,1745927432317,-500.0,0.00034889,2]
[359328163,1745927432326,-500.0,0.00034889,2]
[359328164,1745927432335,-500.0,0.00034889,2]
[359328165,1745927432345,-500.0,0.00034889,2]
[359328166,1745927432355,-500.0,0.00034889,2]
[359328167,1745927432365,-500.0,0.00034889,2]
[359328168,1745927432374,-500.0,0.00034889,2]
[359328169,1745927432384,-500.0,0.00034889,2]
[359328170,1745927432393,-500.0,0.00034889,2]
[359328171,1745927432403,-500.0,0.00034889,2]
[359328172,1745927432412,-500.0,0.00034889,2]
[359328173,1745927432422,-500.0,0.00034889,2]
[359328174,1745927432431,-500.0,0.00034889,2]
[359328175,1745927432441,-500.0,0.00034889,2]
[359328176,1745927432451,-500.0,0.00034889,2]
[359328177,1745927432460,-500.0,0.00034889,2]
[359328178,1745927432470,-500.0,0.00034889,2]
[359328179,1745927432479,-500.0,0.00034889,2]
[359328180,1745927432488,-500.0,0.00034889,2]
[359328181,1745927432497,-500.0,0.00034889,2]
[359328182,1745927432507,-500.0,0.00034889,2]
[359328183,1745927432517,-500.0,0.00034889,2]
[359328184,1745927432527,-500.0,0.00034889,2]
[359328185,1745927432536,-199.44202686,0.00034889,2]
[359328186,1745927432546,-500.0,0.00034889,2]
[359328187,1745927432555,-500.0,0.00034889,2]
[359328188,1745927432565,-500.0,0.00034889,2]
[359328189,1745927432574,-500.0,0.00034889,2]
[359328190,1745927432584,-500.0,0.00034889,2]
[359328191,1745927432593,-500.0,0.00034889,2]
[359328192,1745927432603,-500.0,0.00034889,2]
[359328193,1745927432613,-500.0,0.00034889,2]
[359328194,1745927432623,-500.0,0.00034889,2]
[359328195,1745927432633,-500.0,0.00034889,2]
[359328196,1745927432643,-500.0,0.00034889,2]
[359328197,1745927432657,-500.0,0.00034889,2]
[359328198,1745927432667,-500.0,0.00034889,2]
[359328199,1745927432676,-650.0,0.00034889,2]
[359328200,1745927432687,-500.0,0.00034889,2]
[359328201,1745927432698,-500.0,0.00034889,2]
[359328202,1745927432708,-500.0,0.00034889,2]
[359328203,1745927432718,-500.0,0.00034889,2]
[359328204,1745927432728,-500.0,0.00034889,2]
[359328205,1745927432739,-500.0,0.00034889,2]
[359328206,1745927432751,-500.0,0.00034889,2]
[359328207,1745927432761,-500.0,0.00034889,2]
[359328208,1745927432771,-12441.3596047,0.0003489,2]
[359328209,1745927432780,-99530.8768378,0.0003489,2]
[359328210,1745927432790,-500.0,0.00034899,7]
[359328211,1745927432800,-500.0,0.00034899,7]
[359328212,1745927432809,-643.77075464,0.00034899,7]
[359328213,1745927432820,-500.0,0.00034899,7]
[359328214,1745927432830,-500.0,0.00034899,7]
[359328215,1745927432839,-500.0,0.00034899,7]
[359328216,1745927432849,-500.0,0.00034899,7]
[359328217,1745927432859,-500.0,0.00034899,7]
[359328218,1745927432869,-214.83899517,0.00034899,7]
[359328219,1745927432878,-500.0,0.00034899,7]
[359328220,1745927432888,-490.65153455,0.00034899,7]
[359328221,1745927432899,-840.73483787,0.000349,3]
[359328222,1745927432909,-362.03855831,0.000349,2]
[359328223,1745927432919,-160.0,0.000349,3]
[359328224,1745927432929,-16414.47502138,0.000349,3]
[359328225,1745927432945,-24767.29380093,0.000349,3]
[359328226,1745927432955,-168808.89692655,0.000349,2]
[359328227,1745927432966,-11791.183263,0.000349,2]
[359328228,1745927432984,-13412.04262552,0.000349,2]
[359328243,1745927437790,-9356.1,0.000349,2]
[359328245,1745927437802,-647.91778519,0.000349,2]
[359328247,1745927437813,-813.06142564,0.000349,2]
[359328250,1745927437827,-522.71292882,0.000349,2]
[359328252,1745927437843,-55733.29921137,0.000349,2]
[359328255,1745927437854,-26272.72500394,0.000349,2]
[359328261,1745927437949,-10651.0,0.000349,2]
[359328358,1745927443132,-44354.35377042,0.000349,2]
[359328364,1745927446064,-382.748628,0.000349,2]
[359328380,1745927706995,-176.72829046,0.00018585,2]
[359328381,1745927710681,-1.27170954,0.00018585,2]
[359328384,1745927826041,150.0,7.5e-07,2]
[359328385,1745927826257,150.0,7.5e-07,2]
[359328392,1745928517939,150.0,0.00021,10]
[359328396,1745928579515,185.805388,0.00027397,120]
[359328410,1745928631999,-846.5852697,0.00026897,2]
[359328411,1745928632012,-546.50562813,0.00026897,2]
[359328415,1745928632052,-305.04424904,0.00026897,2]
[359328417,1745928632063,-1361.179494,0.00026897,2]
[359328419,1745928632074,-199.89525401,0.00026997,2]
[359328420,1745928632084,-1000.0,0.00027097,2]
[359328421,1745928632096,-163.365795,0.00027397,2]
[359328422,1745928632108,-224.91230126,0.000279,7]
[359328423,1745928632119,-1200.0,0.00028347,2]
[359328424,1745928632129,-224.91230123,0.00028348,7]
[359328425,1745928632139,-224.91230123,0.00028797,8]
[359328426,1745928632150,-224.91230123,0.00029245,8]
[359328427,1745928632160,-224.91230123,0.00029693,8]
[359328428,1745928632170,-400.0,0.00030135,2]
[359328429,1745928632179,-400.0,0.00030136,2]
[359328430,1745928632190,-400.0,0.00030136,2]
[359328431,1745928632199,-43544.92583815,0.00030137,2]
[359328432,1745928632212,-3285.26072237,0.00030137,2]
[359328433,1745928632222,-305.62805957,0.00030137,2]
[359328434,1745928632232,-224.91230123,0.00030141,9]
[359328435,1745928632244,-224.91230123,0.0003059,9]
[359328436,1745928632253,-541.0,0.00030737,2]
[359328437,1745928632263,-400.0,0.00031037,2]
[359328438,1745928632273,-224.91230123,0.00031038,9]
[359328439,1745928632283,-224.91230123,0.00031486,10]
[359328440,1745928632292,-840.73483787,0.00031735,2]
[359328441,1745928632302,-380.0,0.00031759,2]
[359328442,1745928632313,-1499.36022226,0.000318,2]
[359328443,1745928632322,-160.0,0.00031821,2]
[359328444,1745928632333,-421.28334683,0.00031821,2]
[359328445,1745928632342,-224.91230123,0.00031934,10]
[359328446,1745928632354,-335.1449265,0.00032369,2]
[359328447,1745928632365,-224.91230123,0.00032383,10]
[359328448,1745928632375,-160.0,0.00032474,3]
[359328449,1745928632385,-200.0,0.00032475,2]
[359328450,1745928632395,-200.0,0.00032475,3]
[359328451,1745928632407,-224.91230123,0.00032831,10]
[359328452,1745928632420,-1499.36022225,0.00032961,2]
[359328453,1745928632429,-1032.74818273,0.00033078,4]
[359328454,1745928632439,-224.91230123,0.00033279,11]
[359328455,1745928632448,-560.0,0.00033415,3]
[359328456,1745928632459,-224.91230123,0.00033728,11]
[359328457,1745928632469,-151.0,0.00033893,2]
[359328458,1745928632480,-207.4,0.00033893,2]
[359328459,1745928632491,-1499.36022225,0.00034121,2]
[359328460,1745928632502,-224.91230123,0.00034176,11]
[359328461,1745928632514,-185.805388,0.00034247,120]
[359328462,1745928632524,-318.0053917,0.00034552,2]
[359328463,1745928632535,-936.0851242,0.00034616,4]
[359328464,1745928632545,-224.91230123,0.00034624,12]
[359328465,1745928632555,-160.0,0.00034868,2]
[359328466,1745928632564,-2074.1613845,0.0003489,8]
[359328467,1745928632574,-157.6610457,0.00034904,30]
[359328468,1745928632584,-153.0,0.00034904,30]
[359328469,1745928632593,-153.0,0.00034904,30]
[359328470,1745928632603,-153.0,0.00034904,30]
[359328471,1745928632612,-153.0,0.00034904,30]
[359328472,1745928632622,-153.0,0.00034904,30]
[359328473,1745928632631,-153.0,0.00034904,30]
[359328474,1745928632640,-153.0,0.00034904,30]
[359328475,1745928632650,-153.0,0.00034904,30]
[359328476,1745928632660,-153.0,0.00034904,30]
[359328477,1745928632669,-153.0,0.00034904,30]
[359328478,1745928632679,-153.0,0.00034904,30]
[359328479,1745928632688,-153.0,0.00034904,30]
[359328480,1745928632697,-224.91230123,0.00035072,12]
[359328481,1745928632707,-1499.36022225,0.00035282,2]
[359328482,1745928632717,-20528.2433478,0.00035496,3]
[359328483,1745928632726,-420.99849377,0.00035496,3]
[359328484,1745928632735,-160.0,0.00035496,3]
[359328485,1745928632745,-179.39004427,0.000355,2]
[359328486,1745928632754,-500.0,0.00035505,2]
[359328487,1745928632764,-500.0,0.00035505,2]
[359328488,1745928632774,-500.0,0.00035505,2]
[359328489,1745928632784,-500.0,0.00035505,2]
[359328490,1745928632794,-500.0,0.00035505,2]
[359328491,1745928632804,-500.0,0.00035505,2]
[359328492,1745928632814,-500.0,0.00035505,2]
[359328493,1745928632823,-500.0,0.00035505,2]
[359328494,1745928632833,-500.0,0.00035505,2]
[359328495,1745928632843,-500.0,0.00035505,2]
[359328496,1745928632853,-500.0,0.00035505,2]
[359328497,1745928632862,-500.0,0.00035505,2]
[359328498,1745928632871,-500.0,0.00035505,2]
[359328499,1745928632881,-500.0,0.00035505,2]
[359328500,1745928632891,-500.0,0.00035505,2]
[359328501,1745928632900,-500.0,0.00035505,2]
[359328502,1745928632910,-365.77437115,0.00035505,2]
[359328503,1745928632919,-500.0,0.00035505,2]
[359328504,1745928632929,-500.0,0.00035505,2]
[359328505,1745928632938,-500.0,0.00035505,2]
[359328506,1745928632948,-500.0,0.00035505,2]
[359328507,1745928632957,-500.0,0.00035505,2]
[359328508,1745928632967,-500.0,0.00035505,7]
[359328509,1745928632976,-500.0,0.00035505,7]
[359328510,1745928632985,-500.0,0.00035505,7]
[359328511,1745928632995,-500.0,0.00035505,7]
[359328512,1745928633005,-500.0,0.00035505,7]
[359328513,1745928633015,-500.0,0.00035505,7]
[359328514,1745928633027,-500.0,0.00035505,7]
[359328515,1745928633036,-500.0,0.00035505,7]
[359328516,1745928633046,-500.0,0.00035505,7]
[359328517,1745928633055,-500.0,0.00035505,7]
[359328518,1745928633065,-500.0,0.00035505,7]
[359328519,1745928633075,-500.0,0.00035505,7]
[359328520,1745928633085,-500.0,0.00035505,7]
[359328521,1745928633095,-500.0,0.00035505,7]
[359328522,1745928633106,-400.0,0.00035505,7]
[359328523,1745928633116,-500.0,0.00035505,7]
[359328524,1745928633126,-500.0,0.00035505,7]
[359328525,1745928633136,-500.0,0.00035505,7]
[359328526,1745928633146,-550.0,0.00035505,7]
[359328527,1745928633156,-500.0,0.00035505,2]
[359328528,1745928633165,-500.0,0.00035505,2]
[359328529,1745928633175,-500.0,0.00035505,2]
[359328530,1745928633184,-500.0,0.00035505,2]
[359328531,1745928633195,-500.0,0.00035505,2]
[359328532,1745928633204,-478.73040489,0.00035505,2]
[359328533,1745928633215,-15954.95966757,0.00035506,2]
[359328534,1745928633228,-420.49297841,0.00035506,2]
[359328560,1745928637994,-998.86950075,0.00035506,2]
[359328562,1745928638005,-317.56034567,0.00035506,2]
[359328565,1745928638017,-9022.57774885,0.00035506,2]
[359328569,1745928638050,-480.51426054,0.00035506,2]
[359328571,1745928638061,-25454.32971002,0.00035506,2]
[359328588,1745928638196,-424.13122396,0.00035506,2]
[359328590,1745928638208,-286.97427163,0.00035506,2]
[359328592,1745928638219,-38756.05444568,0.00035506,2]
[359328594,1745928638231,-5000.0,0.00035506,2]
[359328596,1745928638243,-14506.69875736,0.00035506,2]
[359328598,1745928638252,-224.91230123,0.00035521,12]
[359328601,1745928638262,-652.98,0.000356,2]
[359328602,1745928638271,-54741.9822608,0.00035606,3]
[359328604,1745928638281,-500.0,0.00035615,7]
[359328606,1745928638290,-500.0,0.00035615,7]
[359328607,1745928638299,-500.0,0.00035615,7]
[359328608,1745928638309,-228.23734816,0.00035615,7]
[359328609,1745928638324,-500.0,0.00035615,7]
[359328610,1745928638334,-416.3815682,0.00035615,7]
[359328661,1745928640678,-43.08723309,0.00035615,7]
[359328663,1745928640688,-161.64512726,0.00035615,7]
[359328665,1745928640704,-330.154,0.00035615,7]
[359328668,1745928640716,-114.86334933,0.00035615,7]
[359328669,1745928640726,-500.0,0.00035615,7]
[359328671,1745928640735,-500.0,0.00035615,7]
[359328673,1745928640745,-200.0,0.00035615,10]
[359328675,1745928640755,-200.0,0.00035615,10]
[359328677,1745928640764,-200.0,0.00035615,10]
[359328679,1745928640774,-200.0,0.00035615,10]
[359328681,1745928640784,-200.0,0.00035615,10]
[359328683,1745928640794,-200.0,0.00035615,10]
[359328685,1745928640803,-200.0,0.00035615,10]
[359328687,1745928640813,-200.0,0.00035615,10]
[359328689,1745928640823,-200.0,0.00035615,10]
[359328691,1745928640831,-200.0,0.00035615,10]
[359328693,1745928640841,-200.0,0.00035615,10]
[359328695,1745928640851,-200.0,0.00035615,10]
[359328697,1745928640860,-200.0,0.00035615,10]
[359328699,1745928640870,-200.0,0.00035615,10]
[359328701,1745928640880,-200.0,0.00035615,10]
[359328703,1745928640890,-200.0,0.00035615,10]
[359328705,1745928640900,-200.0,0.00035615,10]
[359328707,1745928640910,-200.0,0.00035615,10]
[359328709,1745928640920,-195.063918,0.00035615,10]
[359328711,1745928640929,-196.22747584,0.00035615,7]
[359328713,1745928640939,-181.01927915,0.00035616,2]
[359328715,1745928640948,-9145.20456345,0.00035616,3]
[359328717,1745928640960,-714.78080813,0.00035616,3]
[359328719,1745928640972,-282.76718137,0.00035616,3]
[359328984,1745928643513,-2952.02387336,0.00035616,3]
[359328990,1745928643567,-7496.10798484,0.00035616,3]
[359328992,1745928643576,-500.0,0.00035616,3]
[359328994,1745928643586,-502.21434323,0.00035616,3]
[359328996,1745928643596,-510.83900413,0.00035616,3]
[359328998,1745928643605,-503.4924511,0.00035616,3]
[359329000,1745928643615,-500.0,0.00035616,3]
[359329002,1745928643625,-291.096907,0.00035616,3]
[359329004,1745928643634,-527.19611969,0.00035616,3]
[359329006,1745928643643,-160.0,0.00035616,3]
[359329008,1745928643652,-200.0,0.00035616,3]
[359329010,1745928643661,-400.0,0.00035616,3]
[359329012,1745928643671,-400.0,0.00035616,3]
[359329014,1745928643680,-400.0,0.00035616,3]
[359329016,1745928643689,-400.0,0.00035616,3]
[359329018,1745928643699,-746.11,0.00035616,3]
[359329020,1745928643708,-400.0,0.00035616,3]
[359329022,1745928643716,-200.0,0.00035616,3]
[359329024,1745928643725,-436.09,0.00035616,3]
[359329026,1745928643734,-200.0,0.00035616,3]
[359329028,1745928643743,-446.9,0.00035616,3]
[359329030,1745928643752,-500.0,0.00035616,3]
[359329032,1745928643761,-400.0,0.00035616,3]
[359329034,1745928643771,-500.61399207,0.00035616,3]
[359329036,1745928643780,-500.0,0.00035616,3]
[359329038,1745928643789,-400.0,0.00035616,3]
[359329040,1745928643799,-1205.43,0.00035616,3]
[359329042,1745928643808,-400.0,0.00035616,3]
[359329044,1745928643817,-400.0,0.00035616,3]
[359329046,1745928643827,-500.0,0.00035616,3]
[359329048,1745928643836,-400.0,0.00035616,3]
[359329050,1745928643845,-400.0,0.00035616,3]
[359329052,1745928643855,-500.0,0.00035616,3]
[359329054,1745928643864,-1375.13,0.00035616,3]
[359329056,1745928643874,-1071.82,0.00035616,3]
[359329058,1745928643883,-500.0,0.00035616,3]
[359329060,1745928643892,-442.73,0.00035616,3]
[359329061,1745928643902,-160.0,0.00035616,3]
[359329063,1745928643911,-500.0,0.00035616,3]
[359329066,1745928643921,-500.0,0.00035616,3]
[359329068,1745928643931,-500.0,0.00035616,3]
[359329070,1745928643941,-500.0,0.00035616,3]
[359329072,1745928643950,-500.0,0.00035616,3]
[359329073,1745928643959,-393.96048728,0.00035616,3]
[359329075,1745928643968,-500.0,0.00035616,3]
[359329077,1745928643977,-500.0,0.00035616,3]
[359329079,1745928643985,-400.19,0.00035616,3]
[359329081,1745928643994,-400.0,0.00035616,3]
[359329083,1745928644003,-500.0,0.00035616,3]
[359329085,1745928644013,-400.0,0.00035616,3]
[359329087,1745928644022,-500.0,0.00035616,3]
[359329089,1745928644036,-502.8944996,0.00035616,3]
[359329091,1745928644045,-500.0,0.00035616,3]
[359329093,1745928644055,-400.0,0.00035616,3]
[359329095,1745928644064,-500.0,0.00035616,3]
[359329097,1745928644074,-500.0,0.00035616,3]
[359329099,1745928644084,-218.72506945,0.00035616,3]
[359329101,1745928644093,-256.70585852,0.00035616,3]
[359329103,1745928644102,-400.0,0.00035616,3]
[359329105,1745928644112,-400.0,0.00035616,3]
[359329107,1745928644122,-400.0,0.00035616,3]
[359329109,1745928644132,-500.0,0.00035616,3]
[359329111,1745928644142,-400.0,0.00035616,3]
[359329113,1745928644151,-400.0,0.00035616,3]
[359329115,1745928644161,-500.0,0.00035616,3]
[359329117,1745928644170,-400.0,0.00035616,3]
[359329119,1745928644179,-500.0,0.00035616,3]
[359329121,1745928644189,-400.0,0.00035616,3]
[359329123,1745928644198,-1832.96388502,0.00035616,3]
[359329126,1745928644212,-1796.99635432,0.00035616,3]
[359329305,1745928646082,-109.11976066,0.00035616,3]
[359329307,1745928646092,-187.88023934,0.00035616,3]
[359329319,1745928646191,-212.11976066,0.00035616,3]
[359329321,1745928646201,-250.02623935,0.00035616,3]
[359329326,1745928646244,-149.97376065,0.00035616,3]
[359329329,1745928646253,-400.0,0.00035616,3]
[359329332,1745928646262,-400.0,0.00035616,3]
[359329333,1745928646271,-51.40996986,0.00035616,3]
[359329418,1745928670125,-160.0,0.00031821,2]
[359329420,1745928675189,-340.0,0.00034616,4]
[359329422,1745928720497,-340.0,0.00034616,4]
[359329425,1745928755953,-340.0,0.00034081,2]
[359329426,1745928759265,-3661.6,0.00034081,2]
[359329428,1745928764324,-438.25,0.00034081,2]
[359329429,1745928768439,-621.03896081,0.00034081,2]
[359329430,1745928772865,-2341.44,0.00034081,2]
[359329436,1745928951386,-151.0,0.00018585,2]
[359329450,1745929670611,-300.0,0.00018,2]
[359329451,1745929673573,-263.67939882,0.00018,2]
[359329452,1745929679458,-152.98336857,0.00016,2]
[359329453,1745929685587,-328.21141611,0.00016,2]
[359329454,1745929692971,-300.0,0.00016,2]
[359329455,1745929701233,-500.0,0.00016,2]
[359329456,1745929701972,-21.53525886,0.00016,2]
[359329457,1745929701996,-470.998754,0.00018,2]
[359329458,1745929712080,-150.0,0.000176,2]
[359329459,1745929716911,-171.78858389,0.000176,2]
[359329460,1745929720816,-260.47152956,0.000176,2]
[359329461,1745929724709,-208.18835608,0.00016,2]
[359329462,1745929724730,-41.81164392,0.000176,2]
[359329463,1745929729631,-26.73023316,0.000176,2]
[359329464,1745929729656,-282.77066544,0.00018,2]
[359329465,1745929740759,-152.0,0.00018,2]
[359329466,1745929743895,-644.220608,0.00018,2]
[359329467,1745929750093,-228.311,0.00018,2]
[359329468,1745929756940,-214.26604211,0.00018,2]
[359329469,1745929764236,-260.47152956,0.000179,2]
[359329516,1745929832277,-300.0,0.00017999,2]
[359329518,1745929832287,-150.0,0.00017999,2]
[359329520,1745929832299,-92.78999999,0.00017999,2]
[359329545,1745929832523,-207.21000001,0.00017999,2]
[359329547,1745929832533,-34418.2371043,0.00018,2]
[359329549,1745929832545,-20831.27766137,0.00018,2]
[359329758,1745929841604,-7235.99999996,0.00018,2]
[359329760,1745929841615,-333.0,0.00018,2]
[359329957,1745929843566,-1804.39833891,0.00018,2]
[359330260,1745929846453,-2539.1303296,0.00018,2]
[359330449,1745929896537,-300.0,0.00017999,2]
[359330450,1745929896563,-138.5794093,0.00018,2]
[359330451,1745929906952,-893.86036718,0.00018,2]
[359330452,1745929909821,-171.78858389,0.0001799,2]
[359330453,1745929909847,-136.19908862,0.00018,2]
[359330454,1745929910755,200.0,0.00018,10]
[359330455,1745929911045,200.0,0.00018,10]
[359330456,1745929911397,200.0,0.00018,10]
[359330457,1745929911699,200.0,0.00018,10]
[359330458,1745929912003,200.0,0.00018,10]
[359330459,1745929912930,200.0,0.00018,10]
[359330460,1745929913246,200.0,0.00018,10]
[359330461,1745929913546,200.0,0.00018,10]
[359330462,1745929913845,200.0,0.00018,10]
[359330463,1745929914141,200.0,0.00018,10]
[359330464,1745929914770,200.0,0.00018,10]
[359330465,1745929915081,200.0,0.00018,10]
[359330466,1745929915383,200.0,0.00018,10]
[359330467,1745929915706,200.0,0.00018,10]
[359330468,1745929916024,200.0,0.00018,10]
[359330469,1745929916412,200.0,0.00018,10]
[359330470,1745929916714,200.0,0.00018,10]
[359330471,1745929917018,200.0,0.00018,10]
[359330472,1745929917338,200.0,0.00018,10]
[359330473,1745929917848,200.0,0.00018,10]
[359330474,1745929917937,200.0,0.00018,10]
[359330475,1745929918241,200.0,0.00018,10]
[359330476,1745929918576,200.0,0.00018,10]
[359330477,1745929918890,200.0,0.00018,10]
[359330478,1745929919163,200.0,0.00018,10]
[359330479,1745929919464,200.0,0.00018,10]
[359330480,1745929919781,200.0,0.00018,10]
[359330481,1745929920079,200.0,0.00018,10]
[359330482,1745929920436,200.0,0.00018,10]
[359330483,1745929920946,200.0,0.00018,10]
[359330484,1745929921385,200.0,0.00018,10]
[359330485,1745929921748,200.0,0.00018,10]
[359330486,1745929922054,200.0,0.00018,10]
[359330487,1745929922419,200.0,0.00018,10]
[359330488,1745929922793,200.0,0.00018,10]
[359330489,1745929923105,200.0,0.00018,10]
[359330490,1745929923435,200.0,0.00018,10]
[359330491,1745929923857,200.0,0.00018,10]
[359330492,1745929924295,200.0,0.00018,10]
[359330493,1745929924624,200.0,0.00018,10]
[359330494,1745929955378,-850.19133066,0.000179,2]
[359330495,1745929955404,-2179.80866934,0.00018,2]
[359330496,1745930022595,-300.0,0.00017999,2]
[359330497,1745930022618,-41367.0,0.00018,2]
[359330498,1745930104984,-160.0,0.00017998,2]
[359330499,1745930105005,-300.0,0.00017999,2]
[359330500,1745930105026,-300.0,0.00017999,2]
[359330501,1745930105053,-32767.0,0.00018,2]
[359330502,1745930370573,-1200.0,0.00017999,2]
[359330503,1745930370596,-160.0,0.00017999,2]
[359330504,1745930370623,-300.0,0.00017999,2]
[359330505,1745930370649,-7971.80004805,0.00018,2]
[359330506,1745930370673,-28913.92259045,0.00018,2]
[359330509,1745930404582,-185.805388,0.00033224,120]
[359330510,1745930404646,-14.194612,0.00034137,30]
[359330511,1745930409056,-200.0,0.00034137,30]
[359330512,1745930413000,-105.8663367,0.00034137,30]
[359330513,1745930413025,-94.1336633,0.00034137,30]